[Event "Late-Titled-Tuesday-Blitz-June-04-2024"]
[Site "Chess.com"]
[Date "2024.06.04"]
[Round "1"]
[White "garfield_pg"]
[Black "Kirill_Klukin"]
[Result "1-0"]
[WhiteElo "2478"]
[BlackElo "2816"]
[TimeControl "180+1"]
[EndTime "14:08:58 PDT"]
[Termination "garfield_pg won by resignation"]

1. d4 {[%clk 0:02:59.4]} 1... Nf6 {[%clk 0:02:58.6]} 2. Bf4 {[%clk 0:02:59.7]}
2... d5 {[%clk 0:02:58.2]} 3. e3 {[%clk 0:02:58.7]} 3... c5 {[%clk 0:02:58.3]}
4. Nf3 {[%clk 0:02:56.1]} 4... Nc6 {[%clk 0:02:57.4]} 5. Nbd2 {[%clk 0:02:55.9]}
5... Qb6 {[%clk 0:02:54]} 6. dxc5 {[%clk 0:02:55.7]} 6... Qxb2 {[%clk
0:02:53.7]} 7. Rb1 {[%clk 0:02:55.6]} 7... Qc3 {[%clk 0:02:50.3]} 8. Bb5 {[%clk
0:02:54.5]} 8... e6 {[%clk 0:02:43.5]} 9. O-O {[%clk 0:02:47.5]} 9... Qxc5
{[%clk 0:02:12]} 10. c4 {[%clk 0:02:41.6]} 10... Be7 {[%clk 0:01:57.6]} 11. Ne5
{[%clk 0:02:10.7]} 11... Bd7 {[%clk 0:01:50.4]} 12. Nxd7 {[%clk 0:01:09.7]}
12... Nxd7 {[%clk 0:01:49.2]} 13. cxd5 {[%clk 0:01:10]} 13... Qxd5 {[%clk
0:01:36]} 14. Bc4 {[%clk 0:01:07.1]} 14... Qc5 {[%clk 0:01:19.6]} 15. Rxb7
{[%clk 0:01:04.1]} 15... Nb6 {[%clk 0:01:12.9]} 16. Bb3 {[%clk 0:00:19.1]} 16...
Rd8 {[%clk 0:01:07.3]} 17. Qe2 {[%clk 0:00:18.2]} 17... O-O {[%clk 0:00:54]} 18.
Ne4 {[%clk 0:00:18.5]} 18... Qa3 {[%clk 0:00:29.1]} 19. h3 {[%clk 0:00:14.7]}
19... Nd5 {[%clk 0:00:25.5]} 20. Bg3 {[%clk 0:00:10.8]} 20... Nf6 {[%clk
0:00:16.4]} 21. Nxf6+ {[%clk 0:00:09.2]} 21... Bxf6 {[%clk 0:00:17.3]} 22. Qb5
{[%clk 0:00:08.6]} 22... Ne7 {[%clk 0:00:14.8]} 23. Rc7 {[%clk 0:00:06.3]} 23...
Nd5 {[%clk 0:00:14.5]} 24. Rc4 {[%clk 0:00:05.1]} 24... Nc3 {[%clk 0:00:14.1]}
25. Qc6 {[%clk 0:00:04.9]} 25... Nd5 {[%clk 0:00:12.7]} 26. Qb7 {[%clk
0:00:03.4]} 26... Qb2 {[%clk 0:00:12.1]} 27. Qxa7 {[%clk 0:00:02.7]} 27... Nc3
{[%clk 0:00:12.5]} 28. Qc5 {[%clk 0:00:02.8]} 28... Ne2+ {[%clk 0:00:12.9]} 29.
Kh2 {[%clk 0:00:02.6]} 29... Nxg3 {[%clk 0:00:13.5]} 30. Kxg3 {[%clk 0:00:03.5]}
30... Be5+ {[%clk 0:00:12.6]} 31. f4 {[%clk 0:00:04.1]} 31... Bf6 {[%clk
0:00:11.1]} 32. Rc2 {[%clk 0:00:04.6]} 32... Rd5 {[%clk 0:00:02.5]} 33. Bxd5
{[%clk 0:00:04]} 33... Qb8 {[%clk 0:00:02.3]} 34. Bf3 {[%clk 0:00:04]} 34... e5
{[%clk 0:00:02.9]} 35. Kh2 {[%clk 0:00:03.4]} 35... exf4 {[%clk 0:00:03.5]} 36.
e4 {[%clk 0:00:03.5]} 36... Be5 {[%clk 0:00:03.6]} 37. a3 {[%clk 0:00:02.4]}
37... h6 {[%clk 0:00:04.3]} 38. Qb4 {[%clk 0:00:02.6]} 38... Qa8 {[%clk
0:00:03]} 39. Rd1 {[%clk 0:00:02.9]} 39... Re8 {[%clk 0:00:03.2]} 40. Qb5 {[%clk
0:00:02.9]} 40... Re7 {[%clk 0:00:03]} 41. Qc6 {[%clk 0:00:03.3]} 41... Qa7
{[%clk 0:00:03.3]} 42. Qd5 {[%clk 0:00:03.6]} 42... Kh7 {[%clk 0:00:03.8]} 43.
Qd8 {[%clk 0:00:03.6]} 43... Bf6 {[%clk 0:00:03.4]} 44. Rc8 {[%clk 0:00:03.7]}
44... Kg6 {[%clk 0:00:02.9]} 45. Qd6 {[%clk 0:00:03.2]} 45... Qf2 {[%clk
0:00:03.3]} 46. Qd2 {[%clk 0:00:03.3]} 46... Qg3+ {[%clk 0:00:03.4]} 47. Kh1
{[%clk 0:00:03.9]} 47... Qh4 {[%clk 0:00:02.8]} 48. Qe1 {[%clk 0:00:04.2]} 48...
Qg5 {[%clk 0:00:03.5]} 49. Rd5 {[%clk 0:00:04.4]} 49... Be5 {[%clk 0:00:03.7]}
50. Rcc5 {[%clk 0:00:04.2]} 50... Kh7 {[%clk 0:00:03.5]} 51. Qa5 {[%clk
0:00:04.3]} 51... f6 {[%clk 0:00:04]} 52. Rc8 {[%clk 0:00:03.7]} 52... Rb7
{[%clk 0:00:04.4]} 53. Qe1 {[%clk 0:00:03.1]} 53... Qg6 {[%clk 0:00:03.9]} 54.
Bg4 {[%clk 0:00:03]} 54... Qg5 {[%clk 0:00:03.1]} 55. Bf5+ {[%clk 0:00:03.3]}
55... g6 {[%clk 0:00:03.7]} 56. Bg4 {[%clk 0:00:03.2]} 56... h5 {[%clk
0:00:03.7]} 57. Bf3 {[%clk 0:00:03.4]} 57... Rb2 {[%clk 0:00:03.1]} 58. Rcd8
{[%clk 0:00:03.4]} 58... Rb7 {[%clk 0:00:02.6]} 59. R5d7+ {[%clk 0:00:03.6]}
59... Rxd7 {[%clk 0:00:03.3]} 60. Rxd7+ {[%clk 0:00:04.5]} 60... Kh6 {[%clk
0:00:04.1]} 61. Qf2 {[%clk 0:00:03.3]} 61... Bc3 {[%clk 0:00:02.8]} 62. Rd5
{[%clk 0:00:03.7]} 62... Be5 {[%clk 0:00:02.5]} 63. a4 {[%clk 0:00:03.3]} 63...
h4 {[%clk 0:00:02.4]} 64. a5 {[%clk 0:00:03.5]} 64... f5 {[%clk 0:00:02.3]} 65.
a6 {[%clk 0:00:03.6]} 65... Qe7 {[%clk 0:00:02.4]} 66. Qb6 {[%clk 0:00:02.2]}
66... Bd4 {[%clk 0:00:02.7]} 67. Qxd4 {[%clk 0:00:02]} 67... Qa3 {[%clk
0:00:03.6]} 68. Qd3 {[%clk 0:00:02]} 68... Qc1+ {[%clk 0:00:04.3]} 69. Qd1
{[%clk 0:00:02.6]} 69... Qa3 {[%clk 0:00:04.2]} 70. exf5 {[%clk 0:00:03.1]}
70... Qxa6 {[%clk 0:00:04.1]} 71. f6 {[%clk 0:00:02.8]} 71... Qa7 {[%clk
0:00:03.5]} 72. f7 {[%clk 0:00:02.5]} 72... Qxf7 {[%clk 0:00:03.7]} 73. Qe1
{[%clk 0:00:03]} 73... Qf6 {[%clk 0:00:04.1]} 74. Re5 {[%clk 0:00:02.8]} 74...
Kg7 {[%clk 0:00:04.4]} 75. Re6 {[%clk 0:00:03.2]} 75... Kh6 {[%clk 0:00:05.1]}
76. Rxf6 {[%clk 0:00:03.4]} 76... Kg5 {[%clk 0:00:05.8]} 77. Rxg6+ {[%clk
0:00:03.7]} 77... Kxg6 {[%clk 0:00:06.3]} 78. Qxh4 {[%clk 0:00:04.3]} 78... Kf5
{[%clk 0:00:07.2]} 79. Qg4+ {[%clk 0:00:04.8]} 79... Ke5 {[%clk 0:00:08.1]} 80.
Qg5+ {[%clk 0:00:05.4]} 1-0

[Event "Late-Titled-Tuesday-Blitz-June-04-2024"]
[Site "Chess.com"]
[Date "2024.06.04"]
[Round "1"]
[White "moro182"]
[Black "ericovski"]
[Result "0-1"]
[WhiteElo "2900"]
[BlackElo "2581"]
[TimeControl "180+1"]
[EndTime "14:08:59 PDT"]
[Termination "ericovski won by checkmate"]

1. d4 {[%clk 0:03:00.9]} 1... Nf6 {[%clk 0:02:55.3]} 2. Bf4 {[%clk 0:03:00.5]}
2... g6 {[%clk 0:02:54]} 3. Nc3 {[%clk 0:02:59.7]} 3... d5 {[%clk 0:02:48.3]} 4.
Nb5 {[%clk 0:02:59.1]} 4... Na6 {[%clk 0:02:47.9]} 5. e3 {[%clk 0:02:58.7]} 5...
Bg7 {[%clk 0:02:47.7]} 6. h3 {[%clk 0:02:58.7]} 6... O-O {[%clk 0:02:47.8]} 7.
Nf3 {[%clk 0:02:58.5]} 7... c6 {[%clk 0:02:47.7]} 8. Nc3 {[%clk 0:02:57.8]} 8...
Nc7 {[%clk 0:02:46.4]} 9. Be5 {[%clk 0:02:56.3]} 9... Nd7 {[%clk 0:02:41.1]} 10.
Bxg7 {[%clk 0:02:55.9]} 10... Kxg7 {[%clk 0:02:42]} 11. Bd3 {[%clk 0:02:56]}
11... Re8 {[%clk 0:02:41.6]} 12. e4 {[%clk 0:02:52.7]} 12... dxe4 {[%clk
0:02:41.1]} 13. Nxe4 {[%clk 0:02:52.2]} 13... Nf6 {[%clk 0:02:41.1]} 14. O-O
{[%clk 0:02:49.9]} 14... Nxe4 {[%clk 0:02:38.2]} 15. Bxe4 {[%clk 0:02:50.8]}
15... Nd5 {[%clk 0:02:37]} 16. Re1 {[%clk 0:02:48.1]} 16... Nf6 {[%clk 0:02:30]}
17. c3 {[%clk 0:02:47]} 17... Qc7 {[%clk 0:02:27.7]} 18. Ne5 {[%clk 0:02:45.9]}
18... c5 {[%clk 0:02:26.9]} 19. Qb3 {[%clk 0:02:35.7]} 19... e6 {[%clk
0:02:05.7]} 20. Bf3 {[%clk 0:02:28.2]} 20... Rb8 {[%clk 0:01:50.1]} 21. Rad1
{[%clk 0:02:24.6]} 21... cxd4 {[%clk 0:01:45.7]} 22. Rxd4 {[%clk 0:02:25.5]}
22... Bd7 {[%clk 0:01:34.4]} 23. Qc4 {[%clk 0:02:14.9]} 23... Qxc4 {[%clk
0:01:31.4]} 24. Nxc4 {[%clk 0:02:15.8]} 24... Bc6 {[%clk 0:01:26.1]} 25. Bxc6
{[%clk 0:02:14.8]} 25... bxc6 {[%clk 0:01:27]} 26. Rd6 {[%clk 0:02:14.3]} 26...
Rec8 {[%clk 0:01:25.1]} 27. Re2 {[%clk 0:02:11.7]} 27... Kf8 {[%clk 0:01:22.7]}
28. Ne5 {[%clk 0:02:11.1]} 28... c5 {[%clk 0:01:16.8]} 29. f3 {[%clk 0:02:03.3]}
29... Ke7 {[%clk 0:01:09.1]} 30. Red2 {[%clk 0:01:56.9]} 30... Rb7 {[%clk
0:01:09.1]} 31. Nc6+ {[%clk 0:01:48.4]} 31... Kf8 {[%clk 0:01:08.7]} 32. Rd8+
{[%clk 0:01:34.6]} 32... Rxd8 {[%clk 0:01:08]} 33. Rxd8+ {[%clk 0:01:35.5]}
33... Kg7 {[%clk 0:01:08.2]} 34. Rd2 {[%clk 0:01:36.2]} 34... Nd5 {[%clk
0:01:06.8]} 35. Ne5 {[%clk 0:01:27.6]} 35... Kf6 {[%clk 0:01:04.9]} 36. Ng4+
{[%clk 0:01:27.6]} 36... Ke7 {[%clk 0:01:03.8]} 37. Ne5 {[%clk 0:01:27.1]} 37...
f6 {[%clk 0:00:56.1]} 38. Nc4 {[%clk 0:01:24.4]} 38... Rd7 {[%clk 0:00:52.2]}
39. Kf2 {[%clk 0:01:14.2]} 39... Nb6 {[%clk 0:00:50.3]} 40. Rxd7+ {[%clk
0:01:13.4]} 40... Kxd7 {[%clk 0:00:49.5]} 41. Ne3 {[%clk 0:01:08.2]} 41... Na4
{[%clk 0:00:43]} 42. Nd1 {[%clk 0:01:08]} 42... h5 {[%clk 0:00:39.9]} 43. Ke3
{[%clk 0:01:05.4]} 43... Kd6 {[%clk 0:00:37.7]} 44. Kd3 {[%clk 0:01:05.6]} 44...
Nb6 {[%clk 0:00:36.3]} 45. Ne3 {[%clk 0:01:04.8]} 45... Nd5 {[%clk 0:00:33.8]}
46. Nc4+ {[%clk 0:00:59.5]} 46... Kc6 {[%clk 0:00:33.4]} 47. g3 {[%clk
0:00:59.1]} 47... h4 {[%clk 0:00:32.5]} 48. gxh4 {[%clk 0:01:00]} 48... Nf4+
{[%clk 0:00:32.5]} 49. Ke3 {[%clk 0:00:58.5]} 49... Nxh3 {[%clk 0:00:33.4]} 50.
Nd2 {[%clk 0:00:58.3]} 50... e5 {[%clk 0:00:29.5]} 51. c4 {[%clk 0:00:47.7]}
51... f5 {[%clk 0:00:28.7]} 52. b3 {[%clk 0:00:47.8]} 52... Nf4 {[%clk
0:00:27.7]} 53. Kf2 {[%clk 0:00:46]} 53... a5 {[%clk 0:00:23.6]} 54. Nf1 {[%clk
0:00:42.2]} 54... Nd3+ {[%clk 0:00:21.1]} 55. Ke3 {[%clk 0:00:38.4]} 55... Nc1
{[%clk 0:00:22]} 56. f4 {[%clk 0:00:38.5]} 56... Kd6 {[%clk 0:00:17.9]} 57. Ng3
{[%clk 0:00:36.8]} 57... Ke6 {[%clk 0:00:11.2]} 58. h5 {[%clk 0:00:19.4]} 58...
g5 {[%clk 0:00:08.6]} 59. h6 {[%clk 0:00:10.5]} 59... exf4+ {[%clk 0:00:07.7]}
60. Kf3 {[%clk 0:00:10.8]} 60... Nd3 {[%clk 0:00:04.7]} 61. h7 {[%clk 0:00:07]}
61... Ne5+ {[%clk 0:00:04.8]} 62. Kg2 {[%clk 0:00:04.6]} 62... Ng6 {[%clk
0:00:04.4]} 63. Nh5 {[%clk 0:00:04.8]} 63... Kf7 {[%clk 0:00:03.3]} 64. Kf3
{[%clk 0:00:03.5]} 64... Nh8 {[%clk 0:00:03.4]} 65. Nxf4 {[%clk 0:00:02.7]}
65... gxf4 {[%clk 0:00:03.6]} 66. Kxf4 {[%clk 0:00:03.6]} 66... Kg6 {[%clk
0:00:04.2]} 67. a3 {[%clk 0:00:03.8]} 67... Nf7 {[%clk 0:00:03.4]} 68. a4 {[%clk
0:00:04.4]} 68... Nh8 {[%clk 0:00:03]} 69. Ke5 {[%clk 0:00:05]} 69... Kg5 {[%clk
0:00:03.1]} 70. Kd5 {[%clk 0:00:04.6]} 70... f4 {[%clk 0:00:03.6]} 71. Kxc5
{[%clk 0:00:04.9]} 71... f3 {[%clk 0:00:04.3]} 72. Kb6 {[%clk 0:00:05.3]} 72...
f2 {[%clk 0:00:05]} 73. c5 {[%clk 0:00:06.2]} 73... f1=Q {[%clk 0:00:05.8]} 74.
c6 {[%clk 0:00:07.1]} 74... Qd3 {[%clk 0:00:06.4]} 75. c7 {[%clk 0:00:07.4]}
75... Qxb3+ {[%clk 0:00:07.1]} 76. Kxa5 {[%clk 0:00:07.4]} 76... Qc4 {[%clk
0:00:07.2]} 77. Kb6 {[%clk 0:00:07.6]} 77... Qb4+ {[%clk 0:00:07.7]} 78. Kc6
{[%clk 0:00:08.2]} 78... Qxa4+ {[%clk 0:00:08.1]} 79. Kb7 {[%clk 0:00:08.8]}
79... Qb5+ {[%clk 0:00:08.3]} 80. Kc8 {[%clk 0:00:09.3]} 80... Kf6 {[%clk
0:00:06.7]} 81. Kd8 {[%clk 0:00:09.8]} 81... Qd5+ {[%clk 0:00:07]} 82. Kc8
{[%clk 0:00:10.4]} 82... Ke6 {[%clk 0:00:07]} 83. Kb8 {[%clk 0:00:10.7]} 83...
Qb5+ {[%clk 0:00:07.3]} 84. Kc8 {[%clk 0:00:10]} 84... Kd6 {[%clk 0:00:07.4]}
85. Kd8 {[%clk 0:00:10.5]} 85... Qd7# {[%clk 0:00:07.7]} 0-1

[Event "Late-Titled-Tuesday-Blitz-June-04-2024"]
[Site "Chess.com"]
[Date "2024.06.04"]
[Round "1"]
[White "crazy_but_lazy"]
[Black "familijatop71"]
[Result "1-0"]
[WhiteElo "2613"]
[BlackElo "2298"]
[TimeControl "180+1"]
[EndTime "14:09:01 PDT"]
[Termination "crazy_but_lazy won by resignation"]

1. d4 {[%clk 0:02:57.8]} 1... d5 {[%clk 0:02:59.9]} 2. Nf3 {[%clk 0:02:58.3]}
2... Nf6 {[%clk 0:02:59.8]} 3. Bf4 {[%clk 0:02:58.8]} 3... c5 {[%clk 0:02:59.5]}
4. e3 {[%clk 0:02:59.3]} 4... Nc6 {[%clk 0:02:59.3]} 5. Nbd2 {[%clk 0:02:59.6]}
5... cxd4 {[%clk 0:02:59]} 6. exd4 {[%clk 0:02:59.6]} 6... Bf5 {[%clk
0:02:55.9]} 7. c3 {[%clk 0:02:57.4]} 7... a6 {[%clk 0:02:55.7]} 8. Be2 {[%clk
0:02:57.2]} 8... e6 {[%clk 0:02:55.3]} 9. Nh4 {[%clk 0:02:56.8]} 9... Bg6 {[%clk
0:02:45]} 10. Nxg6 {[%clk 0:02:50.7]} 10... hxg6 {[%clk 0:02:45.9]} 11. Nf3
{[%clk 0:02:50.3]} 11... Bd6 {[%clk 0:02:45.6]} 12. Bxd6 {[%clk 0:02:42.8]}
12... Qxd6 {[%clk 0:02:46.5]} 13. Bd3 {[%clk 0:02:43.2]} 13... b5 {[%clk
0:02:34.1]} 14. a3 {[%clk 0:02:43.3]} 14... Na5 {[%clk 0:02:30.6]} 15. Qe2
{[%clk 0:02:42.2]} 15... Nc4 {[%clk 0:02:16.4]} 16. O-O {[%clk 0:02:31.3]} 16...
O-O {[%clk 0:02:10.9]} 17. Rfe1 {[%clk 0:02:29.8]} 17... Qf4 {[%clk 0:02:02.1]}
18. Ne5 {[%clk 0:02:03.9]} 18... Nxe5 {[%clk 0:01:50.6]} 19. Qxe5 {[%clk
0:02:04.8]} 19... Qxe5 {[%clk 0:01:48.6]} 20. Rxe5 {[%clk 0:02:05.7]} 20... Nd7
{[%clk 0:01:43.9]} 21. Re2 {[%clk 0:02:05.9]} 21... Nb6 {[%clk 0:01:43.4]} 22.
h4 {[%clk 0:01:50.6]} 22... Nc4 {[%clk 0:01:39.7]} 23. g4 {[%clk 0:01:36.2]}
23... Rfe8 {[%clk 0:01:23]} 24. Kg2 {[%clk 0:01:25.9]} 24... f5 {[%clk
0:01:02.7]} 25. f3 {[%clk 0:01:04.9]} 25... Kf7 {[%clk 0:00:59.3]} 26. Kg3
{[%clk 0:01:05.1]} 26... Re7 {[%clk 0:00:41.3]} 27. Rae1 {[%clk 0:01:03.4]}
27... Rae8 {[%clk 0:00:39.3]} 28. Kf4 {[%clk 0:01:01.1]} 28... Kf6 {[%clk
0:00:34.5]} 29. Bxc4 {[%clk 0:00:22.8]} 29... bxc4 {[%clk 0:00:31.4]} 30. g5+
{[%clk 0:00:23.1]} 30... Kf7 {[%clk 0:00:29.6]} 31. Ke5 {[%clk 0:00:22.8]} 31...
Rd7 {[%clk 0:00:25]} 32. Rh1 {[%clk 0:00:21.8]} 32... Rh8 {[%clk 0:00:24.6]} 33.
Reh2 {[%clk 0:00:21.5]} 33... Rb7 {[%clk 0:00:21]} 34. Re1 {[%clk 0:00:20.6]}
34... Ke7 {[%clk 0:00:20.5]} 35. Ree2 {[%clk 0:00:20.4]} 35... a5 {[%clk
0:00:20.6]} 36. a4 {[%clk 0:00:16.9]} 36... Rh5 {[%clk 0:00:15.9]} 37. Ref2
{[%clk 0:00:15.3]} 37... Rb6 {[%clk 0:00:15.8]} 38. Re2 {[%clk 0:00:15.4]} 38...
Rc6 {[%clk 0:00:16.2]} 39. Re3 {[%clk 0:00:15.1]} 39... Rb6 {[%clk 0:00:16.5]}
40. Ree2 {[%clk 0:00:15.1]} 40... Rc6 {[%clk 0:00:16.8]} 41. Rc2 {[%clk
0:00:15.3]} 41... Rb6 {[%clk 0:00:17.1]} 42. Rc1 {[%clk 0:00:14.9]} 42... Rc6
{[%clk 0:00:16.9]} 43. Re1 {[%clk 0:00:15.1]} 43... Rb6 {[%clk 0:00:17.2]} 44.
Kf4 {[%clk 0:00:15.2]} 44... Rc6 {[%clk 0:00:15]} 45. Kg3 {[%clk 0:00:15.3]}
45... Rb6 {[%clk 0:00:14.7]} 46. Rhe2 {[%clk 0:00:15.4]} 46... Rc6 {[%clk
0:00:11.2]} 47. Re5 {[%clk 0:00:15.8]} 47... Rd6 {[%clk 0:00:11.3]} 48. R1e2
{[%clk 0:00:16]} 48... Rh8 {[%clk 0:00:10.9]} 49. Rh2 {[%clk 0:00:15.9]} 49...
Rh5 {[%clk 0:00:11.1]} 50. Ree2 {[%clk 0:00:16.2]} 50... Rb6 {[%clk 0:00:10.3]}
51. Kf4 {[%clk 0:00:14.8]} 51... Rd6 {[%clk 0:00:09.8]} 52. Ref2 {[%clk
0:00:13.7]} 52... Rb6 {[%clk 0:00:09.5]} 53. Rf1 {[%clk 0:00:14.3]} 53... Rd6
{[%clk 0:00:09.2]} 54. Re1 {[%clk 0:00:14.2]} 54... Rb6 {[%clk 0:00:08.9]} 55.
Rb1 {[%clk 0:00:14.8]} 55... Rh8 {[%clk 0:00:08.5]} 56. Ke5 {[%clk 0:00:13.5]}
56... Rh5 {[%clk 0:00:08.2]} 57. b4 {[%clk 0:00:08.6]} 57... cxb3 {[%clk
0:00:07.4]} 58. Rhb2 {[%clk 0:00:08.7]} 58... Rxh4 {[%clk 0:00:07.3]} 59. Rxb3
{[%clk 0:00:09.3]} 59... Rxb3 {[%clk 0:00:06]} 60. Rxb3 {[%clk 0:00:10.2]} 60...
Rh3 {[%clk 0:00:06]} 61. Rb7+ {[%clk 0:00:10.7]} 61... Ke8 {[%clk 0:00:06.5]}
62. Kxe6 {[%clk 0:00:10.6]} 62... Kd8 {[%clk 0:00:06.3]} 63. Kxd5 {[%clk
0:00:10.2]} 63... Rxf3 {[%clk 0:00:06.5]} 64. c4 {[%clk 0:00:10.9]} 64... Re3
{[%clk 0:00:05.5]} 65. Rxg7 {[%clk 0:00:09.5]} 65... f4 {[%clk 0:00:06]} 66. Rf7
{[%clk 0:00:09.5]} 66... Ra3 {[%clk 0:00:05.5]} 67. c5 {[%clk 0:00:09.2]} 67...
Rxa4 {[%clk 0:00:05.8]} 68. Rxf4 {[%clk 0:00:09.8]} 68... Ra1 {[%clk 0:00:05.3]}
69. Rf6 {[%clk 0:00:09.1]} 69... a4 {[%clk 0:00:05.7]} 70. Rxg6 {[%clk
0:00:09.7]} 70... a3 {[%clk 0:00:06.3]} 71. Ra6 {[%clk 0:00:10.4]} 71... a2
{[%clk 0:00:06.9]} 72. Ra7 {[%clk 0:00:10.9]} 72... Kc8 {[%clk 0:00:06.6]} 73.
g6 {[%clk 0:00:11]} 73... Rg1 {[%clk 0:00:06.3]} 74. Rxa2 {[%clk 0:00:10.9]}
74... Rxg6 {[%clk 0:00:06.1]} 75. Ra7 {[%clk 0:00:11.1]} 75... Kb8 {[%clk
0:00:06.3]} 76. Rh7 {[%clk 0:00:10.8]} 76... Kc8 {[%clk 0:00:06.5]} 77. Kc4
{[%clk 0:00:10.3]} 77... Rg1 {[%clk 0:00:06.2]} 78. d5 {[%clk 0:00:09.9]} 78...
Rc1+ {[%clk 0:00:06.8]} 79. Kb5 {[%clk 0:00:10.4]} 79... Rg1 {[%clk 0:00:07.2]}
80. Kc6 {[%clk 0:00:10.6]} 80... Rg6+ {[%clk 0:00:07.3]} 81. d6 {[%clk
0:00:11.1]} 81... Rf6 {[%clk 0:00:08.2]} 82. Rh8+ {[%clk 0:00:11.5]} 1-0

[Event "Late-Titled-Tuesday-Blitz-June-04-2024"]
[Site "Chess.com"]
[Date "2024.06.04"]
[Round "1"]
[White "wonderfultime"]
[Black "Noki102"]
[Result "1/2-1/2"]
[WhiteElo "3048"]
[BlackElo "2520"]
[TimeControl "180+1"]
[EndTime "14:09:06 PDT"]
[Termination "Game drawn - insufficient material"]

1. d4 {[%clk 0:03:00.9]} 1... d5 {[%clk 0:03:00.3]} 2. Nf3 {[%clk 0:03:00.8]}
2... Nf6 {[%clk 0:03:00.6]} 3. Bf4 {[%clk 0:03:01.4]} 3... Bf5 {[%clk
0:03:00.9]} 4. c4 {[%clk 0:03:01]} 4... e6 {[%clk 0:03:01.2]} 5. Qb3 {[%clk
0:03:00.9]} 5... Nc6 {[%clk 0:02:40.6]} 6. Nbd2 {[%clk 0:03:01]} 6... Rb8 {[%clk
0:02:39.1]} 7. e3 {[%clk 0:02:56.9]} 7... Bd6 {[%clk 0:02:34.7]} 8. Bg5 {[%clk
0:02:56.6]} 8... h6 {[%clk 0:02:31.5]} 9. Bh4 {[%clk 0:02:56.1]} 9... O-O {[%clk
0:02:21.9]} 10. Be2 {[%clk 0:02:52.3]} 10... Be7 {[%clk 0:02:16.6]} 11. O-O
{[%clk 0:02:51.1]} 11... Na5 {[%clk 0:02:10.6]} 12. Qd1 {[%clk 0:02:07.7]} 12...
Nxc4 {[%clk 0:02:09.3]} 13. Nxc4 {[%clk 0:02:07.4]} 13... dxc4 {[%clk
0:02:09.4]} 14. Bxc4 {[%clk 0:02:08.3]} 14... Ne4 {[%clk 0:02:06.7]} 15. Bxe7
{[%clk 0:02:04.7]} 15... Qxe7 {[%clk 0:02:07.6]} 16. Rc1 {[%clk 0:02:04.8]}
16... c5 {[%clk 0:02:00.8]} 17. Bd3 {[%clk 0:02:00.6]} 17... cxd4 {[%clk
0:01:55.8]} 18. Nxd4 {[%clk 0:01:59.6]} 18... Bh7 {[%clk 0:01:38.3]} 19. Qc2
{[%clk 0:01:55.7]} 19... Nf6 {[%clk 0:01:35.8]} 20. Bxh7+ {[%clk 0:01:51.1]}
20... Nxh7 {[%clk 0:01:36.7]} 21. Qc7 {[%clk 0:01:46.9]} 21... Qxc7 {[%clk
0:01:27.3]} 22. Rxc7 {[%clk 0:01:46.8]} 22... Nf6 {[%clk 0:01:28.2]} 23. Rfc1
{[%clk 0:01:45.3]} 23... Nd5 {[%clk 0:01:28.4]} 24. R7c4 {[%clk 0:01:45]} 24...
Rfd8 {[%clk 0:01:21.4]} 25. Kf1 {[%clk 0:01:40.8]} 25... a6 {[%clk 0:01:19.9]}
26. Ke2 {[%clk 0:01:39.6]} 26... Nb6 {[%clk 0:01:16.5]} 27. Rb4 {[%clk
0:01:38.5]} 27... Nd5 {[%clk 0:01:14.7]} 28. Rb3 {[%clk 0:01:38.9]} 28... Kf8
{[%clk 0:01:11.9]} 29. g3 {[%clk 0:01:23]} 29... Ke7 {[%clk 0:01:10.1]} 30. a4
{[%clk 0:01:19.9]} 30... g5 {[%clk 0:01:05.7]} 31. h3 {[%clk 0:01:17.2]} 31...
h5 {[%clk 0:01:02.6]} 32. a5 {[%clk 0:01:10.2]} 32... f5 {[%clk 0:00:59.3]} 33.
Nf3 {[%clk 0:01:05.8]} 33... g4 {[%clk 0:00:54.5]} 34. hxg4 {[%clk 0:01:06.7]}
34... hxg4 {[%clk 0:00:54.8]} 35. Ne5 {[%clk 0:01:07.4]} 35... Kf6 {[%clk
0:00:51.8]} 36. Nd3 {[%clk 0:01:06.2]} 36... Rd7 {[%clk 0:00:36]} 37. Rh1 {[%clk
0:01:05.3]} 37... Rc7 {[%clk 0:00:34.5]} 38. Rh6+ {[%clk 0:01:03.4]} 38... Ke7
{[%clk 0:00:27.1]} 39. Kf1 {[%clk 0:00:35.3]} 39... Kd6 {[%clk 0:00:25.4]} 40.
Nf4 {[%clk 0:00:20.7]} 40... Nxf4 {[%clk 0:00:22.3]} 41. exf4 {[%clk 0:00:21]}
41... Rc5 {[%clk 0:00:21.9]} 42. Rb6+ {[%clk 0:00:19.8]} 42... Rc6 {[%clk
0:00:20.6]} 43. Rb3 {[%clk 0:00:19.7]} 43... Rc5 {[%clk 0:00:20.7]} 44. Rd3+
{[%clk 0:00:20]} 44... Rd5 {[%clk 0:00:21]} 45. Re3 {[%clk 0:00:20]} 45... Re8
{[%clk 0:00:19.5]} 46. Rb3 {[%clk 0:00:19.4]} 46... Re7 {[%clk 0:00:18.7]} 47.
Rb6+ {[%clk 0:00:18.8]} 47... Kc7 {[%clk 0:00:16.9]} 48. Rbxe6 {[%clk
0:00:09.5]} 48... Rxe6 {[%clk 0:00:17.1]} 49. Rxe6 {[%clk 0:00:10.4]} 49... Rxa5
{[%clk 0:00:18]} 50. Re7+ {[%clk 0:00:09.1]} 50... Kc6 {[%clk 0:00:16.6]} 51.
Re3 {[%clk 0:00:08.5]} 51... Rb5 {[%clk 0:00:16.7]} 52. b3 {[%clk 0:00:08.3]}
52... Rd5 {[%clk 0:00:16.6]} 53. Re7 {[%clk 0:00:06.9]} 53... b5 {[%clk
0:00:16.7]} 54. Re6+ {[%clk 0:00:06]} 54... Rd6 {[%clk 0:00:14.8]} 55. Re5
{[%clk 0:00:06]} 55... Rd5 {[%clk 0:00:15.3]} 56. Re6+ {[%clk 0:00:06.6]} 56...
Kb7 {[%clk 0:00:15.6]} 57. b4 {[%clk 0:00:05.1]} 57... Rd4 {[%clk 0:00:12.6]}
58. Re5 {[%clk 0:00:05.6]} 58... Rxb4 {[%clk 0:00:12.5]} 59. Rxf5 {[%clk
0:00:06.3]} 59... a5 {[%clk 0:00:13.1]} 60. Rc5 {[%clk 0:00:05.6]} 60... a4
{[%clk 0:00:13.2]} 61. f5 {[%clk 0:00:05.8]} 61... Kb6 {[%clk 0:00:12.6]} 62. f6
{[%clk 0:00:04.6]} 62... Rb1+ {[%clk 0:00:11.3]} 63. Ke2 {[%clk 0:00:04.1]}
63... Rh1 {[%clk 0:00:10.6]} 64. Rc8 {[%clk 0:00:02.6]} 64... Rh7 {[%clk
0:00:10.4]} 65. Rf8 {[%clk 0:00:02.2]} 65... Kc5 {[%clk 0:00:09.5]} 66. f7
{[%clk 0:00:02.6]} 66... Kb4 {[%clk 0:00:10]} 67. f4 {[%clk 0:00:02]} 67...
gxf3+ {[%clk 0:00:08.7]} 68. Kxf3 {[%clk 0:00:02.4]} 68... a3 {[%clk 0:00:09.6]}
69. Ke4 {[%clk 0:00:02.3]} 69... a2 {[%clk 0:00:09.7]} 70. Ra8 {[%clk
0:00:02.8]} 70... Rxf7 {[%clk 0:00:08.4]} 71. Rxa2 {[%clk 0:00:03.2]} 71... Kb3
{[%clk 0:00:08.6]} 72. Ra8 {[%clk 0:00:03.5]} 72... b4 {[%clk 0:00:08.9]} 73. g4
{[%clk 0:00:04.1]} 73... Kb2 {[%clk 0:00:08.4]} 74. g5 {[%clk 0:00:04.4]} 74...
b3 {[%clk 0:00:08.8]} 75. Rb8 {[%clk 0:00:04.6]} 75... Ka2 {[%clk 0:00:08.3]}
76. Ke5 {[%clk 0:00:05.1]} 76... Ra7 {[%clk 0:00:08.6]} 77. g6 {[%clk
0:00:05.2]} 77... b2 {[%clk 0:00:08.9]} 78. Rxb2+ {[%clk 0:00:04.7]} 78... Kxb2
{[%clk 0:00:09]} 79. Kf6 {[%clk 0:00:05.6]} 79... Kc3 {[%clk 0:00:08.5]} 80. g7
{[%clk 0:00:06.1]} 80... Rxg7 {[%clk 0:00:09.1]} 81. Kxg7 {[%clk 0:00:07]}
1/2-1/2